Cogmind - Beta 11.1 @@@ ROGUE MODE // 2022.05.15 @ 07:43:10 Player: Trione Result: Destroyed by Enhanced Grunt with Neutron Cannon Performance ------------- Evolutions (3) 1500 Regions Visited (10) 2000 Robots Destroyed (135) 675 Value Destroyed (3903) 3903 Prototype IDs (239) 4780 Alien Tech Used (0) 0 Bonus (4203) 4203 TOTAL SCORE: 17061 Bonus ------- High Alert Combat Kills 603 Aligned with FarCom 300 Met Data Miner 300 Used Data Conduit 3000 Cogmind --------- Core Integrity 0/700 Matter 293/300 Energy 298/300 System Corruption 0% Temperature Cool (0) Movement Core (50) Location -7/Data Miner Parts ------- > --- POWER (1) -------- (None) > --- PROPULSION (2) --- (None) > --- UTILITY (8) ------ Compact Battery Improved Signal Interpreter Improved Targeting Computer Hacking Suite > --- WEAPON (2) ------- (None) > --- INVENTORY (5) ---- Light Nuclear Core Deep Network Scanner Quantum Router Heavy Missile Launcher Peak State ------------ > --- POWER ------------ Light Nuclear Core > --- PROPULSION ------- Armored Wheel Armored Wheel > --- UTILITY ---------- Improved Cooling System Humpback Advanced Visual Processing Unit Hardened Medium Armor Plating Reactive Plating > --- WEAPON ----------- Firepult > --- INVENTORY -------- Light Treads Light Treads Armored Wheel Armored Wheel Improved Cooling System Humpback Large Matter Pod Improved Sensor Array Transport Network Coupler 0b10 Alert Chip Improved Targeting Computer Force Booster Force Booster Hardened Medium Armor Plating Hardened Medium Armor Plating Reactive Plating Reactive Plating Reactive Plating EM Pulse Gun Shock Rifle Shock Rifle Particle Cannon Assault Rifle XL Autogun Array Light Cannon Light Cannon Improved Grenade Launcher Missile Launcher Plasma Cutter Flail Maul [Rating: 52] Favorites ----------- Power Light Ion Engine Engine Light Ion Engine Power Core Light Nuclear Core Propulsion Armored Wheel Treads Armored Treads Wheel Armored Wheel Utility Humpback Device Transmission Jammer Storage Humpback Processor Improved Targeting Computer Hackware Hacking Suite Protection Reactive Plating Weapon Heavy Particle Cannon Energy Gun Shock Rifle Energy Cannon Heavy Particle Cannon Ballistic Gun Assault Rifle Ballistic Cannon Flak Cannon Launcher Missile Launcher Impact Weapon Great Maul Slashing Weapon Mining Claw Piercing Weapon Spear Build | -11 -10 -10 -10 -9 -8 -8 -7 -7 -7 -7 ------- Run | Scr Mat Min Exi Min Mat Sto Fac Low Low Dat Slots Evolved 6 | . . . . . 4 . 2 . . . Power . | . . . . . . . . . . . Propulsion . | . . . . . . . . . . . Utility 6 | . . . . . 4 . 2 . . . Weapon . | . . . . . . . . . . . Parts Attached 199 | 6 15 10 3 . 94 26 3 9 27 6 Power 12 | 1 . 2 . . 5 2 1 1 . . Engine 9 | 1 . 1 . . 3 2 1 1 . . Core 3 | . . 1 . . 2 . . . . . Reactor . | . . . . . . . . . . . Propulsion 26 | 2 7 3 . . 9 3 . . 2 . Treads 3 | . . 1 . . 1 . . . 1 . Leg . | . . . . . . . . . . . Wheel 23 | 2 7 2 . . 8 3 . . 1 . Hover . | . . . . . . . . . . . Flight . | . . . . . . . . . . . Utility 61 | 1 1 1 1 . 27 7 2 4 14 3 Device 29 | . . . . . 14 6 1 3 5 . Storage 12 | 1 1 1 1 . 2 . . . 3 3 Processor 5 | . . . . . 2 . 1 1 1 . Hackware 1 | . . . . . . . . . 1 . Protection 14 | . . . . . 9 1 . . 4 . Artifact . | . . . . . . . . . . . Weapon 100 | 2 7 4 2 . 53 14 . 4 11 3 Energy Gun 15 | 2 . . . . 11 1 . . 1 . Energy Cannon 23 | . . . . . 14 3 . 2 4 . Ballistic Gun 2 | . . 1 . . 1 . . . . . Ballistic Cannon 19 | . 4 2 . . 5 6 . . 2 . Launcher 18 | . . . . . 13 3 . 2 . . Special Weapon . | . . . . . . . . . . . Impact Weapon 12 | . 3 . 1 . 4 1 . . 1 2 Slashing Weapon 5 | . . 1 1 . . . . . 3 . Piercing Weapon 6 | . . . . . 5 . . . . 1 Special Melee Weapon . | . . . . . . . . . . . Unidentified Prototypes . | . . . . . . . . . . . Corrupted Parts 1 | . . . . . . 1 . . . . System Corruption 1 | . . . . . . 1 . . . . Parts Lost 48 | . . 2 . . 21 8 . . 11 6 Power 8 | . . 1 . . 5 1 . . 1 . Propulsion 12 | . . 1 . . 4 3 . . 2 2 Utility 19 | . . . . . 9 1 . . 7 2 Weapon 9 | . . . . . 3 3 . . 1 2 Highest Loss Streak 9 | . . 1 . . 8 2 . . 9 6 To Critical Strikes . | . . . . . . . . . . . Average Slot Usage (%) 87 | . 84 99 85 85 86 87 92 92 85 64 Engine 7 | . 14 13 14 14 4 5 7 7 5 . Core 2 | . . . . . 4 3 . . . . Wheel 19 | . 27 27 28 28 17 16 15 15 12 6 Device 12 | . . . . . 12 21 23 26 18 3 Storage 11 | . 14 27 14 14 9 9 7 7 9 14 Processor 8 | . . . . . 8 9 15 15 17 22 Protection 6 | . . . . . 11 5 7 3 4 . Energy Gun 2 | . 12 . . . 3 . . . . . Energy Cannon 3 | . . . . . 4 5 7 6 6 . Ballistic Cannon 3 | . 5 21 1 . 1 8 . . 2 . Impact Weapon 4 | . 9 1 13 14 2 2 7 7 . . Slashing Weapon 1 | . . . 13 14 . . . . 1 . Piercing Weapon 1 | . . . . . 2 . . . . 1 Naked Turns . | . . . . . . . . . . . Heaviest Build 246 | 11 48 52 208 208 246 237 238 234 242 13 Greatest Support 37 | 20 26 28 28 28 33 37 28 37 28 16 Greatest Overweight (x) 18 | . 15 1 7 7 10 18 8 8 8 3 Average Overweight (x) 5 | . 1 1 5 7 8 7 8 6 3 . Largest Inventory Capacity 35 | 8 20 20 35 35 35 35 35 35 35 10 Average Capacity 31 | 7 17 20 33 35 35 35 35 35 27 7 Most Carried 35 | 4 20 20 34 34 35 35 34 35 35 8 Average Carried 29 | 2 11 19 24 34 33 33 31 34 26 6 Final Capacity 35 | 8 20 20 35 35 35 35 35 35 10 5 Final Carried 35 | 4 20 18 34 34 32 32 34 35 8 4 Class Distribution -------------------- 82% | Hauler-Mutant 14% | Mutant Dominant Class ---------------- Mutant | -10/Materials Mutant | -10/Mines Hauler-Mutant | -10/Exiles Hauler-Mutant | -9/Mines Hauler-Mutant | -8/Materials Hauler-Mutant | -8/Storage Hauler-Mutant | -7/Factory Hauler-Mutant | -7/Lower Caves Hauler-Mutant | -7/Lower Caves Scavenger-Mutant | -7/Data Miner Resources | -11 -10 -10 -10 -9 -8 -8 -7 -7 -7 -7 ----------- Run | Scr Mat Min Exi Min Mat Sto Fac Low Low Dat Matter Collected 3643 | 260 197 275 10 . 1597 583 222 163 313 23 Remotely . | . . . . . . . . . . . Salvage Created 4181 | 77 440 80 . . 2637 661 . 122 141 23 Parts 196 | 8 25 12 . . 98 39 . 6 6 2 Haulers Intercepted 6 | . 2 . . . 3 1 . . . . Recyclers Shooed 6 | . 1 . . . 2 3 . . . . Parts Field Recycled . | . . . . . . . . . . . Retrieved Matter . | . . . . . . . . . . . Parts Self-Destructed 5 | . . . . . . . . 2 3 . Prevented 3 | . . . . . . . . 1 2 . Kills | -11 -10 -10 -10 -9 -8 -8 -7 -7 -7 -7 ------- Run | Scr Mat Min Exi Min Mat Sto Fac Low Low Dat Combat Hostiles Destroyed 92 | . 9 8 . . 51 15 . 5 4 . Melee 7 | . 2 . . . 5 . . . . . Guns 8 | . 6 . . . 2 . . . . . Cannons 39 | . 1 7 . . 14 12 . 1 4 . AOE 34 | . . . . . 27 3 . 4 . . Classes Destroyed 17 | 2 5 2 . . 8 . . . . . Worker 7 | . . 1 . . 4 2 . . . . Builder 7 | . 1 . . . 5 1 . . . . Tunneler 1 | 1 . . . . . . . . . . Hauler 6 | . 2 . . . 3 1 . . . . Recycler 12 | 1 2 . . . 7 2 . . . . Mechanic 1 | . . . . . 1 . . . . . Watcher 8 | . 2 . . . 5 1 . . . . Swarmer 23 | . 6 6 . . 7 1 . 3 . . Grunt 37 | . 3 1 . . 23 7 . 1 2 . Brawler 3 | . . . . . 3 . . . . . Duelist 8 | . . . . . 5 1 . 1 1 . Protector 1 | . . . . . 1 . . . . . Sentry 14 | . . . . . 8 6 . . . . Demolisher 1 | . . 1 . . . . . . . . Specialist 2 | . . . . . 2 . . . . . Hunter 2 | . . . . . 1 . . . 1 . Heavy 1 | . . . . . 1 . . . . . Best Kill Streak 7 | 2 3 3 . . 7 4 . 3 3 1 Combat Bots Only 6 | . 3 3 . . 6 3 . 3 3 . Max Kills in Single Turn 4 | 1 1 1 . . 4 4 . 2 1 1 Gunslinging . | . . . . . . . . . . . Exploded 4 | . . . . . 4 3 . 2 . . Melee 1 | . 1 . . . 1 . . . . . Uniques/NPCs Destroyed 1 | . . . . . . . . . . 1 Data Miner (-7/Data Miner) Combat | -11 -10 -10 -10 -9 -8 -8 -7 -7 -7 -7 -------- Run | Scr Mat Min Exi Min Mat Sto Fac Low Low Dat Damage Taken 7101 | . 158 365 . . 3757 919 . 80 1124 698 Core 1281 | . 48 57 . . 331 140 . 22 236 447 Absorbed by Shields . | . . . . . . . . . . . Regen/Repaired (Parts) 60 | . . . . . 60 . . . . . Core Remaining (%) 57 | 100 . . . 58 . 14 . . . . Volleys Fired 327 | 5 40 20 . . 159 73 1 9 20 . Largest 2 | 1 2 2 . . 2 2 1 1 2 . Hottest 250 | 40 80 70 . . 250 125 75 75 132 . Shots Fired 439 | 5 44 39 . . 211 99 1 9 31 . Gun 84 | 5 17 . . . 59 1 . . 2 . Cannon 314 | . 27 39 . . 117 95 1 6 29 . Launcher 41 | . . . . . 35 3 . 3 . . Special . | . . . . . . . . . . . Kinetic 167 | . 27 39 . . 24 61 . . 16 . Thermal 140 | . 6 . . . 93 34 1 3 3 . Explosive 41 | . . . . . 35 3 . 3 . . Electromagnetic 91 | 5 11 . . . 59 1 . 3 12 . Robot Hit Streak 17 | 2 9 3 . . 10 17 . 2 5 . Robot Miss Streak 12 | 1 5 3 . . 3 12 . 1 6 . Penetration Max . | . . . . . . . . . . . Secondary Targets . | . . . . . . . . . . . Shots Hit Robots 300 | 3 40 19 . . 141 73 . 4 19 1 Core Hits 253 | 2 15 9 . . 132 68 . 7 19 1 Critical Kills 2 | . 1 . . . 1 . . . . . Critical Parts Destroyed 2 | . 1 . . . 1 . . . . . Critical Strikes 9 | . 3 1 . . 5 . . . . . Meltdown 1 | . . . . . 1 . . . . . Blast 2 | . 1 1 . . . . . . . . Corrupt 1 | . . . . . 1 . . . . . Smash 3 | . 2 . . . 1 . . . . . Impale 2 | . . . . . 2 . . . . . Melee Attacks 145 | . 18 1 . . 84 5 8 8 5 16 Impact 87 | . 18 . . . 42 5 8 8 1 5 Slashing 5 | . . 1 . . . . . . 4 . Piercing 53 | . . . . . 42 . . . . 11 Sneak Attacks 10 | . 4 . . . 4 1 . . . 1 Combat Hostiles . | . . . . . . . . . . . Follow-up Attacks 5 | . 3 . . . 2 . . . . . Damage Inflicted 11791 | 85 1094 346 . . 7289 1931 . 567 405 74 Guns 805 | 45 113 . . . 633 14 . . . . Cannons 3928 | . 422 346 . . 1194 1493 . 68 405 . Explosions 5007 | 40 . . . . 4164 304 . 499 . . Melee 2051 | . 559 . . . 1298 120 . . . 74 Ramming . | . . . . . . . . . . . Kinetic 2420 | . 422 346 . . 281 1143 . . 228 . Thermal 1774 | 40 44 . . . 1315 350 . 25 . . Explosive 4531 | . . . . . 3728 304 . 499 . . Electromagnetic 1015 | 45 69 . . . 667 14 . 43 177 . Impact 1342 | . 559 . . . 663 120 . . . . Slashing . | . . . . . . . . . . . Piercing 709 | . . . . . 635 . . . . 74 Highest Corruption 5 | . 5 5 5 5 . 1 . . . . Average Corruption 4 | . 4 5 5 5 . 1 . . . . Corruption Purged . | . . . . . . . . . . . Corruption Blocked . | . . . . . . . . . . . Effects 65 | . 17 11 33 4 . . . . . . Message Errors 14 | . 6 3 5 . . . . . . . Matter Fused 16 | . 3 3 10 . . . . . . . Heat Flow Errors 10 | . 3 1 5 1 . . . . . . Energy Discharges 8 | . 1 1 5 1 . . . . . . Parts Rejected 2 | . 1 1 . . . . . . . . Data Loss (minor) 12 | . 3 2 5 2 . . . . . . Data Loss (major) 3 | . . . 3 . . . . . . . Overload Shots . | . . . . . . . . . . . Overflow Damage 678 | . 277 13 . . 324 56 . 8 . . Projectiles 73 | . . 13 . . 4 56 . . . . Explosions 145 | . . . . . 137 . . 8 . . Melee 460 | . 277 . . . 183 . . . . . Knockbacks 51 | . 3 11 . . 14 18 . . 5 . Impact 4 | . 1 . . . 2 1 . . . . Kinetic 44 | . 2 8 . . 12 17 . . 5 . Secondary 3 | . . 3 . . . . . . . . Self-Inflicted Damage 325 | . . . . . 325 . . . . . Shots 10 | . . . . . 10 . . . . . Rammed . | . . . . . . . . . . . Targets Rammed . | . . . . . . . . . . . Kicked . | . . . . . . . . . . . Crushed . | . . . . . . . . . . . Highest Temperature 345 | . 263 85 267 233 272 192 36 52 345 . Average Temperature 70 | . 70 25 107 123 87 41 24 19 130 . Received Heat Transfer 2091 | . 42 45 . . 1395 315 . 18 276 . Effects 1 | . . . . . 1 . . . . . Energy Bleed 1 | . . . . . 1 . . . . . Siege Activations . | . . . . . . . . . . . Robots Corrupted 1 | . . . . . 1 . . . . . Combat Hostiles 1 | . . . . . 1 . . . . . Parts Fried 14 | . 6 . . . 8 . . . . . Impact Corruptions 14 | . 7 1 . . 6 . . . . . Robots Melted 1 | . . . . . 1 . . . . . Combat Hostiles . | . . . . . . . . . . . Parts Melted 12 | . . . . . 12 . . . . . Heat Transferred 4053 | 100 100 . . . 3298 518 . 37 . . Parts Sabotaged . | . . . . . . . . . . . Parts Stolen 1 | . . . . . . . . 1 . . Parts Stripped . | . . . . . . . . . . . Power Chain Reactions 4 | 1 . . . . 3 . . . . . Missiles Intercepted . | . . . . . . . . . . . Alert | -11 -10 -10 -10 -9 -8 -8 -7 -7 -7 -7 ------- Run | Scr Mat Min Exi Min Mat Sto Fac Low Low Dat Peak Influence 1118 | 10 247 160 . . 1118 527 116 . . . Initial 471 | . 6 7 . . . 471 112 . . . Average 305 | 4 94 46 . . 394 410 55 . . . Maximum Alert Level 4 | . 1 . . . 4 2 . . . . Low Security (%) 46 | 100 85 100 . 100 35 . 100 . . . Level 1 12 | . 14 . . . 5 48 . . . . Level 2 32 | . . . . . 42 51 . . . . Level 3 8 | . . . . . 15 . . . . . Level 4 . | . . . . . 1 . . . . . Level 5 . | . . . . . . . . . . . High Security . | . . . . . . . . . . . Max Security . | . . . . . . . . . . . Sterilizations 1 | . . . . . 1 . . . . . Squads Dispatched 14 | . . . . . 11 2 1 . . . Investigation 3 | . . . . . 2 1 . . . . Extermination 1 | . . . . . . . 1 . . . Reinforcement 7 | . . . . . 6 1 . . . . Assault 3 | . . . . . 3 . . . . . Garrison . | . . . . . . . . . . . Intercept . | . . . . . . . . . . . Searches Triggered . | . . . . . . . . . . . Construction Impeded . | . . . . . . . . . . . Haulers Reinforced . | . . . . . . . . . . . Active Scanning Responses . | . . . . . . . . . . . Cargo Convoy Interrupts . | . . . . . . . . . . . Stealth | -11 -10 -10 -10 -9 -8 -8 -7 -7 -7 -7 --------- Run | Scr Mat Min Exi Min Mat Sto Fac Low Low Dat Distress Signals 8 | . 2 . . . 4 2 . . . . Communications Jammed 51 | . . . . . 9 42 . . . . Distress Signals 51 | . . . . . 9 42 . . . . Times Spotted 144 | . 17 12 . . 77 19 . 9 6 4 Peak Tracking Total 7 | . 5 3 . . 7 7 1 3 3 4 Tactical Retreats 9 | . 1 3 . . 2 . . 2 1 . Traps | -11 -10 -10 -10 -9 -8 -8 -7 -7 -7 -7 ------- Run | Scr Mat Min Exi Min Mat Sto Fac Low Low Dat Traps Triggered 7 | . 6 . . . . 1 . . . . Indirectly . | . . . . . . . . . . . Trap Hack Attempts . | . . . . . . . . . . . Triggered . | . . . . . . . . . . . Disarmed . | . . . . . . . . . . . Reprogrammed . | . . . . . . . . . . . Reused . | . . . . . . . . . . . Traps Extracted . | . . . . . . . . . . . Installed . | . . . . . . . . . . . Triggered . | . . . . . . . . . . . Machines | -11 -10 -10 -10 -9 -8 -8 -7 -7 -7 -7 ---------- Run | Scr Mat Min Exi Min Mat Sto Fac Low Low Dat Machines Disabled 7 | . . 1 . . 3 3 . . . . Max in Single Turn 1 | . . 1 . . 1 1 . . . . Machines Sabotaged . | . . . . . . . . . . . Garrisons Compromised . | . . . . . . . . . . . Overloaded Fab Kills . | . . . . . . . . . . . Hacking | -11 -10 -10 -10 -9 -8 -8 -7 -7 -7 -7 --------- Run | Scr Mat Min Exi Min Mat Sto Fac Low Low Dat Machines Accessed 32 | . 6 . 5 . 10 5 1 1 . 4 Terminals 18 | . 6 . . . 7 4 1 . . . Fabricators . | . . . . . . . . . . . Repair Stations 3 | . . . . . 2 1 . . . . Recycling Units . | . . . . . . . . . . . Scanalyzers 1 | . . . . . 1 . . . . . Garrison Access . | . . . . . . . . . . . Total Hacks 155 | . 20 . 50 . 35 19 1 1 . 29 Successful 120 | . 8 . 50 . 22 10 . 1 . 29 Failed 35 | . 12 . . . 13 9 1 . . . Catastrophic 2 | . . . . . 2 . . . . . Database Lockouts . | . . . . . . . . . . . Manual 50 | . 18 . 4 . 19 9 . . . . Terminals 61 | . 20 . . . 23 17 1 . . . Fabricators . | . . . . . . . . . . . Repair Stations 6 | . . . . . 4 2 . . . . Recycling Units . | . . . . . . . . . . . Scanalyzers 8 | . . . . . 8 . . . . . Garrison Access . | . . . . . . . . . . . Terminal Hacks 93 | . 4 . 50 . 3 6 . 1 . 29 Record 60 | . . . 49 . . . . . . 11 Part Schematic 13 | . 2 . . . . . . . . 11 Robot Schematic 4 | . . . . . . . . . . 4 Prototype ID Bank 3 | . . . . . . . . . . 3 Open Door 2 | . . . . . . 1 . 1 . . Terminal Index 1 | . . . . . . 1 . . . . Scanalyzer Index 1 | . . . . . 1 . . . . . Unreport Threat 5 | . 2 . . . 1 2 . . . . Hauler Manifests 1 | . . . . . . 1 . . . . Zone Layout 2 | . . . . . 1 1 . . . . EX-Prototype ID Bank 1 | . . . 1 . . . . . . . Fabricator Hacks . | . . . . . . . . . . . Repair Station Hacks 4 | . . . . . 3 1 . . . . Scan Component 3 | . . . . . 2 1 . . . . Repair 1 | . . . . . 1 . . . . . Recycling Unit Hacks . | . . . . . . . . . . . Scanalyzer 8 | . . . . . 8 . . . . . Insert Component 4 | . . . . . 4 . . . . . Analyze 4 | . . . . . 4 . . . . . Garrison Access Hacks . | . . . . . . . . . . . Unauthorized Hacks 15 | . 4 . . . 8 3 . . . . Terminals 15 | . 4 . . . 8 3 . . . . Track 2 | . 1 . . . . 1 . . . . Assimilate 2 | . . . . . 2 . . . . . Botnet 8 | . 3 . . . 3 2 . . . . Disrupt 2 | . . . . . 2 . . . . . Operators 1 | . . . . . 1 . . . . . Fabricators . | . . . . . . . . . . . Repair Stations . | . . . . . . . . . . . Recycling Units . | . . . . . . . . . . . Scanalyzers . | . . . . . . . . . . . Garrison Access . | . . . . . . . . . . . Data Cores Recovered . | . . . . . . . . . . . Used . | . . . . . . . . . . . Hacking Detections 20 | . 5 . . . 10 4 1 . . . Full Trace Events 2 | . . . . . 1 1 . . . . Feedback Events . | . . . . . . . . . . . Feedback Blocked . | . . . . . . . . . . . Robot Schematics Acquired 4 | . . . . . . . . . . 4 Robots Built . | . . . . . . . . . . . Authchips . | . . . . . . . . . . . Time . | . . . . . . . . . . . Total Robot Build Rating . | . . . . . . . . . . . Part Schematics Acquired 17 | . 2 . . . 4 . . . . 11 Parts Built . | . . . . . . . . . . . Authchips . | . . . . . . . . . . . Time . | . . . . . . . . . . . Total Part Build Rating . | . . . . . . . . . . . Parts Repaired 1 | . . . . . 1 . . . . . Time 32 | . . . . . 32 . . . . . Parts Recycled . | . . . . . . . . . . . Recycled Matter . | . . . . . . . . . . . Retrieved Matter . | . . . . . . . . . . . Retrieved Components . | . . . . . . . . . . . Parts Scanalyzed 4 | . . . . . 4 . . . . . Part Schematics Acquired 4 | . . . . . 4 . . . . . Parts Damaged . | . . . . . . . . . . . Bothacking | -11 -10 -10 -10 -9 -8 -8 -7 -7 -7 -7 ------------ Run | Scr Mat Min Exi Min Mat Sto Fac Low Low Dat Used RIF Installer . | . . . . . . . . . . . Robots Hacked . | . . . . . . . . . . . Non-combat . | . . . . . . . . . . . Combat . | . . . . . . . . . . . Robot Hacks Applied . | . . . . . . . . . . . Relay Couplers Released . | . . . . . . . . . . . Fabnet Peak Effective % . | . . . . . . . . . . . Robots Rewired . | . . . . . . . . . . . Allies Hacked . | . . . . . . . . . . . Hacks Repelled . | . . . . . . . . . . . Allies | -11 -10 -10 -10 -9 -8 -8 -7 -7 -7 -7 -------- Run | Scr Mat Min Exi Min Mat Sto Fac Low Low Dat Total Allies . | . . . . . . . . . . . Largest Group . | . . . . . . . . . . . Highest-Rated Group . | . . . . . . . . . . . Highest-Rated Ally . | . . . . . . . . . . . Total Orders 8 | . . . . . . 5 . 3 . . STAY 1 | . . . . . . 1 . . . . EXPLORE 5 | . . . . . . 2 . 3 . . RETURN 2 | . . . . . . 2 . . . . Ally Attacks . | . . . . . . . . . . . Total Damage . | . . . . . . . . . . . Kills . | . . . . . . . . . . . Allies Corrupted . | . . . . . . . . . . . Allies Melted . | . . . . . . . . . . . Intel | -11 -10 -10 -10 -9 -8 -8 -7 -7 -7 -7 ------- Run | Scr Mat Min Exi Min Mat Sto Fac Low Low Dat Robot Analysis Total 128 | . . . . . . . . . . 128 Derelict Logs Recovered 5 | . . . . 2 . . . 1 2 . Drone Launches 5 | . . . . . . 2 . 3 . . Drone Recoveries 3 | . . . . . . 2 . 1 . . Exploration | -11 -10 -10 -10 -9 -8 -8 -7 -7 -7 -7 ------------- Run | Scr Mat Min Exi Min Mat Sto Fac Low Low Dat Turns Passed 13161 | 63 985 568 1401 170 5322 1520 839 847 1227 219 Spaces Moved 6092 | 52 768 432 744 86 1886 446 372 380 714 212 Core 290 | 3 1 . . . . . . . 173 113 Treads . | . . . . . . . . . . . Legs . | . . . . . . . . . . . Wheels 5802 | 49 767 432 744 86 1886 446 372 380 541 99 Hover . | . . . . . . . . . . . Flight . | . . . . . . . . . . . Fastest Speed 50 | 50 80 105 95 200 180 170 215 185 50 50 Average Speed 173 | 78 101 106 184 200 218 212 215 198 139 75 Slowest Speed 800 | 80 800 110 200 200 240 360 215 215 215 200 Overloaded Moves . | . . . . . . . . . . . Propulsion Burnouts . | . . . . . . . . . . . Robots Hopped . | . . . . . . . . . . . Cave-ins Triggered . | . . . . . . . . . . . Exploration Rate (%) 63 | 4 95 87 92 32 97 74 8 71 58 80 Regions Visited 10 Branch Regions 7 Pre-discovered Areas 27 | . . . 1 2 . . . . . 24 Known Exits Taken 3 | . . . . . . . 1 1 1 . Unknown Exits Taken 7 | 1 1 1 1 1 1 1 . . . . Scrap Searched 9 | . . 2 . . . . . 4 3 . Spaces Dug 140 | . 6 . . . 103 13 8 3 7 . Terrain Destroyed 503 | 4 6 . . . 375 49 8 53 8 . Melee 63 | . 6 . . . 39 2 8 3 5 . Projectile 75 | . . . . . 45 27 . . 3 . AOE 365 | 4 . . . . 291 20 . 50 . . Terrain Rammed . | . . . . . . . . . . . Walls Destroyed . | . . . . . . . . . . . Machines Disabled . | . . . . . . . . . . . Actions | -11 -10 -10 -10 -9 -8 -8 -7 -7 -7 -7 --------- Run | Scr Mat Min Exi Min Mat Sto Fac Low Low Dat Total 7939 | 66 893 496 770 85 2746 899 395 448 893 248 Wait 983 | . 35 34 . . 434 332 5 27 114 2 Move 6082 | 51 767 431 743 85 1885 445 371 379 713 212 Hop . | . . . . . . . . . . . Pick Up 126 | 4 16 . 22 . 47 11 6 8 9 3 Fast Attach 42 | 6 7 2 1 . 11 1 . 2 9 3 Attach 55 | . 1 2 . . 33 10 2 2 2 3 Detach 23 | . 1 . . . 13 3 . 2 2 2 Swap 102 | . 7 6 2 . 50 15 1 5 16 . Drop 59 | . 4 . 2 . 32 4 1 6 3 7 Fire 327 | 5 40 20 . . 159 73 1 9 20 . Melee 140 | . 15 1 . . 82 5 8 8 5 16 Ram . | . . . . . . . . . . . Kick . | . . . . . . . . . . . Crush . | . . . . . . . . . . . Escape Stasis . | . . . . . . . . . . . Rewire . | . . . . . . . . . . . Trap . | . . . . . . . . . . . Miscellaneous . | . . . . . . . . . . . Route ------- -11/Scrapyard -10/Materials (discovered 4 exits: [*Mat x3] / [*Min]) -10/Mines (discovered 3 exits: [*Mat x2] / *Exi) -10/Exiles (discovered 2 exits: [*Min x2]) -9/Mines -8/Materials (discovered 5 exits: *Fac x3 / *Sto x2) -8/Storage -7/Factory -7/Lower Caves -7/Lower Caves (discovered 2 exits: Fac / *Dat) -7/Data Miner (discovered 1 exit: *Pro) History --------- Turn | Location | Event 23 | -11/Scrapyard | Discovered new exit (range 15) 64 | -11/Scrapyard | Entered Materials 99 | -10/Materials | Discovered new exit (range 9) 314 | -10/Materials | Build established: Mutant 401 | -10/Materials | Discovered new exit (range 6) 662 | -10/Materials | Discovered new exit (range 16) 798 | -10/Materials | Discovered new exit (range 16) 1049 | -10/Materials | Entered Mines 1089 | -10/Mines | Assembled infested the area 1226 | -10/Mines | Discovered new exit (range 10) 1561 | -10/Mines | Discovered new exit (range 7) 1612 | -10/Mines | Deemed a non-threat by the Exiles lab entrance 1613 | -10/Mines | Discovered new exit (range 5) 1617 | -10/Mines | Entered Exiles 1634 | -10/Exiles | Discovered new exit (range 15) 1647 | -10/Exiles | Met 8R-AWN 1666 | -10/Exiles | Met EX-HEX 1897 | -10/Exiles | Met EX-DEC 1935 | -10/Exiles | Met EX-BIN 2057 | -10/Exiles | Build established: Hauler-Mutant 2147 | -10/Exiles | Learned location of Zion (-6) 2230 | -10/Exiles | Visited The Gauntlet 2663 | -10/Exiles | Aligned with FarCom system 2665 | -10/Exiles | Given EX-Vault access code 2711 | -10/Exiles | Opened EX-Vault 2729 | -10/Exiles | Found Firepult 2732 | -10/Exiles | Found 0b10 Alert Chip 2737 | -10/Exiles | Found XL Autogun Array 2780 | -10/Exiles | Warned to stay clear of 0b10 Research branches 3002 | -10/Exiles | Discovered new exit (range 10) 3018 | -10/Exiles | Stole three prototypes: 0b10 Alert Chip, Firepult, XL Autogun Array 3018 | -10/Exiles | Entered Mines 3172 | -9/Mines | Discovered new exit (range 8) 3188 | -9/Mines | Entered Materials 3188 | -8/Materials | Evolved 4 slots: Utility x4 3544 | -8/Materials | Discovered new exit (range 18) 4155 | -8/Materials | Discovered new exit (range 13) 4410 | -8/Materials | Discovered new exit (range 7) 5104 | -8/Materials | Discovered new exit (range 8) 5149 | -8/Materials | Discovered new exit (range 17) 5504 | -8/Materials | Repaired Arm. Wheel 6855 | -8/Materials | Lost 3 parts (1p2u) 6960 | -8/Materials | Lost 8 parts (1p2n4u1w) 7588 | -8/Materials | First assault squad dispatched 7690 | -8/Materials | Core integrity fell below 50% 8014 | -8/Materials | Lost 4 parts (1p1n2w) 8440 | -8/Materials | Sterilization system engaged 8440 | -8/Materials | Non-combat units ordered to evacuate 8510 | -8/Materials | Entered Storage 9498 | -8/Storage | Core integrity fell below 20% 9981 | -8/Storage | Discovered new exit (range 16) 10030 | -8/Storage | Entered Factory 10030 | -7/Factory | Evolved 2 slots: Utility x2 10032 | -7/Factory | FarCom data flow suspended 10572 | -7/Factory | Discovered new exit (range 5) 10583 | -7/Factory | Identified exit to Lower Caves 10869 | -7/Factory | Entered Lower Caves 10869 | -7/Lower Caves | Spotted NA-ANV(f) 10870 | -7/Lower Caves | Encountered a Master Thief 10882 | -7/Lower Caves | Firepult stolen by Master Thief 11450 | -7/Lower Caves | Learned Factory stockpile data 11638 | -7/Lower Caves | Discovered new exit (range 13) 11666 | -7/Lower Caves | Identified exit to Lower Caves 11716 | -7/Lower Caves | Entered another Lower Caves area 12599 | -7/Lower Caves | Spotted B-75 Beast 12665 | -7/Lower Caves | Lost 9 parts (1p2n5u1w) 12697 | -7/Lower Caves | Identified exit to Factory 12720 | -7/Lower Caves | Discovered new exit (range 10) 12765 | -7/Lower Caves | Encountered a Warlord checkpoint 12941 | -7/Lower Caves | Identified exit to Data Miner 12943 | -7/Lower Caves | Entered Data Miner 12943 | -7/Data Miner | Discovered new exit (range 6) 12955 | -7/Data Miner | Identified exit to Proximity Caves 12970 | -7/Data Miner | Met Data Miner 12989 | -7/Data Miner | Learned location of Section 7 (-2) 12989 | -7/Data Miner | Acquired the access code to Warlord's prototype stash 13010 | -7/Data Miner | Build established: Scavenger-Mutant 13010 | -7/Data Miner | Received God Mode back door access code from Data Miner 13090 | -7/Data Miner | Destroyed Data Miner 13093 | -7/Data Miner | Found Prototype Hackware 13094 | -7/Data Miner | Found Prototype Hackware 13095 | -7/Data Miner | Interfaced with the Data Conduit 13143 | -7/Data Miner | Core integrity fell below 50% 13160 | -7/Data Miner | Core integrity fell below 20% 13162 | -7/Data Miner | Destroyed by Enhanced Grunt with Neutron Cannon Last Messages --------------- 13090_ Sneak attack on Data Miner. 13090_ Data Miner destroyed. 13092_ Dropped Com. Battery. 13093_ Acquired Prototype Hackware. 13095_ Acquired 23 matter. 13095_ Interfacing with system... Downloaded 128 analysis records. Downloaded 718 prototype IDs. Downloaded central machine database. Downloaded 23 destinations. Downloaded encryption format records. Connection remotely terminated. 13129_ Spear destroyed. 13140_ Melee Analysis Suite destroyed. 13140_ Arm. Treads destroyed. 13151_ Great Maul destroyed. 13151_ Com. Wheel destroyed. 13153_ Extracted 1 energy. 13153_ Acquired Com. Battery. 13159_ Com. Battery destroyed. Map ----- +----------------------------------------------------+ | | | | | | | | | | | | | | | | | | | | | | | | | | | | | | | | | | | ???????????????????????????????????????????????? | | ???????????????????????????????????????????????? | | ???????????????????????????????????????????????? | | ???????????????????????????????????????????????? | | ???????????????????????????????????####????????? | | ??#################????###?#?????###! #????????? | | ?##"""""""""""""""###### # #????##]*! #????????? | | ##""""""""" """"""""# # # # ##!!> ##????????? | | #"""""""""" g @ ######???? | | #""" #???? | | #" g #???? | | # " """ #???? | | # """" " ##???? | | # """ "" """"""""""""""""#####????? | | # "" """" """"###############????????? | | ## """"" """""###??????????????????????? | | ?##"""""""" "#####????????????????????????? | | ??########"## "#????????????????????????????? | | ?????????#"### "#????????????????????????????? | | ?????????#"### "#????????????????????????????? | | ?????????#"## "#????????????????????????????? | | ??????????"## "#????????????????????????????? | | ???????????# "#????????????????????????????? | | ???????????### "#????????????????????????????? | | ?????????????# "##???????????????????????????? | | ????????????## ""#???????????????????????????? | | ?????????#?## ""#???????????????????????????? | | ????????##"#"X ""#???????????????????????????? | | ???????"""""" "####????????????????????????? | | ???????#""""" X"""""????????????????????????? | | ???????###"#"X "##"#????????????????????????? | | ?????????#"## X""""#????????????????????????? | | ????????????## "##"#????????????????????????? | +----------------------------------------------------+ Best States ------------- Heat Dissipation 67 Coolant Potential 50 Energy Generation 16 Energy Capacity 800 Matter Stores 450 Matter Capacity 450 Sight Range 20 Robot Scan Range 15 Terrain Scan Density 10 Jamming Range 12 Additional Mass Support 9 Armor Coverage 525 Resistance: KI 20 Evasion (%) 50 Targeting Accuracy 6 Melee Accuracy 5 Recoil Reduction 1 Force Boost 20 Offensive Hacking 10 Item Schematics ----------------- Lrg. Storage Unit | -10/Materials | Hacked Cargo Storage Unit | -10/Materials | Hacked Humpback | -8/Materials | Scanalyzed Arm. Wheel | -8/Materials | Scanalyzed Reactive Plating | -8/Materials | Scanalyzed Plasma Cutter | -8/Materials | Scanalyzed Combat Drone Bay | -7/Data Miner | Free Lgt. Regenerative Plating | -7/Data Miner | Free Cld. Cesium-ion Thruster | -7/Data Miner | Free Exp. Targeting Computer | -7/Data Miner | Free Prc. Rocket Launcher | -7/Data Miner | Free Hvy. Treads | -7/Data Miner | Free Imp. Kinecellerator | -7/Data Miner | Free Hvy. Phase Cannon | -7/Data Miner | Free Variable Charge Gun | -7/Data Miner | Free Field Propulsion Array | -7/Data Miner | Free Adv. Trap Scanner | -7/Data Miner | Free Robot Schematics ------------------ M-28 Smith | -7/Data Miner | Free Y-54 Guardian | -7/Data Miner | Free S-27 Virus | -7/Data Miner | Free E-15 Imp | -7/Data Miner | Free Fabricated ------------ Nothing Alien Tech Used ----------------- None Achievements -------------- None Challenges ------------ None Game ------ Seed AlphaHackingBay Manual? 0 Play Time 02:34:14 Cumulative 1213.6 hours Start 2022.05.15 @ 03:38:45 End 2022.05.15 @ 07:43:10 Sessions 1 Manual Loads 0 Difficulty Rogue Special Mode None Game No. 442 Rogue 442 Adventurer 0 Explorer 0 Win Type - Total 26 Types 13/2/7/0/0/0/4/0/0 Lore% 89 Gallery% 90 Achievement% 85 Wizard Run 0 Options --------- ASCII 0 Keyboard 0 Movement Vi Keybinds 0 Fullscreen 0 Font 12/Crisp Map View 76x50 Tactical HUD 1 Map Filters NONE Filters NONE Steam 1 RUN: 77b7b696-d694-4a83-a78d-8999cfb50c69